[Event "13th KIIT Festival-A 2022"]
[Site "Bhubaneswar"]
[Date "2022.05.26"]
[Round "6.16"]
[White "Vignesh Advaith Vemula"]
[Black "Kiran, Manisha Mohanty"]
[Result "0-1"]
[ECO "B56"]
[WhiteElo "1437"]
[BlackElo "2098"]
[Annotator "TA"]
[PlyCount "131"]
[EventDate "2022.05.15"]
[EventType "swiss"]
[EventCountry "IND"]
[SourceTitle "playchess.com"]
[Source "ChessBase"]
[SourceQuality "1"]
[TimeControl "5400+30"]

{[%evp 15,131,12,38,38,33,26,134,-16,39,0,22,0,47,20,111,97,86,83,103,86,175,165,168,155,148,94,107,101,101,102,107,0,0,0,0,0,0,-56,0,0,0,0,0,0,0,0,0,-52,-54,-54,-54,-65,-46,-35,-8,-32,-32,-212,-212,-196,-196,-184,-164,-144,-144,-306,-299,-299,-256,-299,-299,-273,-200,-245,-129,-129,0,0,0,0,0,0,0,0,0,0,0,0,0,0,8,8,8,-29975,-29977,-29977,-29978,-29980,-29981,-29981,-29982,-29986,-29987,-29987,-29988,-29988,-29989,-29989,-29990,-29990,-29991,-29991,-29992,-29992,-29993,-29993,-29993,-29993]} 1. e4 {[%emt 0:02:55]} c5 {[%emt 0:01:21]} 2. Nf3 {[%emt 0:00:40][%cal Bg1f3,Bf3d4,Bd4b3][%mdl 32]} d6 {[%emt 0:00:07]} 3. d4 {[%emt 0:00:29]} cxd4 {[%emt 0:00:08]} 4. Nxd4 {[%emt 0:00:18]} Nf6 {[%emt 0:00:10]} 5. Nc3 {[%emt 0:00:18]} Nc6 {[%emt 0:00:09]} 6. f3 {[%emt 0:00:15]} e5 {[%emt 0:00:09]} 7. Nb3 {[%emt 0:00:24]} Be6 {[%emt 0:00:26]} 8. Be3 {[%emt 0:00:48] 8.Nd5 is more fashionable.} Be7 {[%emt 0:00:07]} 9. Qe2 {[%emt 0:03:00] B56: Classical Sicilian: Unusual Lines.} a5 {[%emt 0:00:33]} 10. O-O-O {[%emt 0:00:50]} O-O {[%emt 0:02:38]} (10... a4 $11 11. Nc5 a3) 11. g4 {[%emt 0:03:48]} (11. Nc5 $1 $16) 11... Qc8 {[%emt 0:00:35]} ({Black should play} 11... a4 $11 12. Nc5 a3) 12. a4 {[%emt 0:04:49]} Nb4 {[%emt 0:00:45][%cal Ob7b5]} 13. Kb1 {[%emt 0:02:42] [#]} (13. g5 $5 {[%cal Rg5f6]} Nh5 14. Kb1 $11) 13... Qc6 $146 {[%emt 0:03:32]} (13... b5 $11 14. g5 (14. Nxb5 Bxb3 15. cxb3 Qe6 $11) (14. Qxb5 $2 Rb8 $19) (14. axb5 $2 a4 $19) 14... Nh5 15. Nxb5 (15. axb5 a4 $17) 15... d5) ({Predecessor:} 13... b5 14. Nxb5 d5 15. g5 Nd7 16. exd5 Nxd5 17. Bg2 Nxe3 18. Qxe3 Qc4 19. Qe4 Qxe4 20. fxe4 {0-1 (59) Ansat,A (2391)-Hoolt,S (2315) Budapest 2021}) 14. Qf2 {[%emt 0:03:11]} Bc4 {[%emt 0:02:01]} (14... Bxb3 $11 {remains equal.} 15. cxb3 d5) 15. Bxc4 $16 {[%emt 0:14:28]} Qxc4 {[%emt 0:00:11]} 16. h4 {[%emt 0:08:54]} b5 {[%emt 0:08:12]} 17. Nxb5 {[%emt 0:03:30]} (17. axb5 $6 a4 18. Nd2 Qe6 $11) 17... d5 {[%emt 0:00:14]} (17... Rfc8 $16 18. Nc3 (18. Nxd6 Bxd6 19. Rxd6 Nxc2 $17) 18... d5) 18. g5 $18 {[%emt 0:02:57]} Nh5 {[%emt 0:00:42]} 19. exd5 {[%emt 0:04:38]} Nxd5 {[%emt 0:00:09]} 20. Bc5 {[%emt 0:04:36]} (20. Rhe1 $142) 20... Qxa4 $16 {[%emt 0:04:55]} 21. Rxd5 {[%emt 0:01:05]} Qxb5 {[%emt 0:00:11]} 22. Rxe5 {[%emt 0:02:35]} a4 {[%emt 0:03:08]} 23. Bd6 {[%emt 0:13:22]} Qa6 $11 {[%emt 0:01:27]} 24. Bxe7 {[%emt 0:00:43]} axb3 {[%emt 0:00:09][%csl Ga8][%cal Ra6a1]} 25. Ba3 {[%emt 0:02:01]} Nf4 {[%emt 0:07:13] And now ...Rfc8 would win.} 26. Re4 {[%emt 0:07:50] [#]} ({White should try} 26. Rd1 $11) 26... bxc2+ {[%emt 0:12:59]} (26... Rfc8 $1 $15 27. c4 (27. Rxf4 $2 bxc2+ 28. Kc1 Qe6 $19) (27. cxb3 $2 Qd3+ 28. Ka2 Rxa3+ 29. bxa3 Rc2+ 30. Qxc2 Qxc2+ 31. Ka1 Qc3+ 32. Ka2 Qc2+ 33. Ka1 f5 $19) 27... Rxc4) 27. Qxc2 {[%emt 0:01:51]} Rfc8 $36 {[%emt 0:06:52][%mdl 2048] Black has the initiative.} 28. Rhe1 {[%emt 0:03:24]} Ne6 {[%emt 0:00:51]} 29. Qe2 {[%emt 0:00:53]} Qc6 {[%emt 0:01:53]} 30. f4 {[%emt 0:03:59]} g6 {[%emt 0:04:37]} 31. Rxe6 {[%emt 0:03:00]} (31. Rb4 $11) 31... Qxe6 $15 {[%emt 0:01:52]} 32. Qxe6 {[%emt 0:00:03]} fxe6 {[%emt 0:00:12]} 33. Rxe6 $11 {[%emt 0:00:07][%mdl 4096] Endgame KRR-KRB} Ra4 {[%emt 0:00:21]} 34. Rf6 {[%emt 0:01:09]} Ra5 {[%emt 0:00:10]} 35. Rb6 {[%emt 0:00:55]} Rca8 {[%emt 0:00:44]} 36. Bd6 $2 {[%emt 0:00:41]} (36. Kc2 $15) 36... R5a6 $1 $19 {[%emt 0:00:06]} 37. Rxa6 {[%emt 0:00:22]} Rxa6 {[%emt 0:00:09] KR-KB} 38. Be5 {[%emt 0:00:05]} Kf7 {[%emt 0:00:19][%mdl 1024] ...Rc6 is the strong threat. Black has strong compensation.} 39. Kc2 {[%emt 0:00:12]} Ke6 {[%emt 0:00:05]} 40. Kb3 $2 {[%emt 0:00:56] [#]} (40. Kd3 $17 {might work better.}) 40... Kd5 $1 {[%emt 0:00:07]} 41. Kb4 {[%emt 0:00:19]} Rb6+ {[%emt 0:00:14]} 42. Ka5 {[%emt 0:00:09]} Rb3 {[%emt 0:00:30]} 43. Bc3 {[%emt 0:00:48]} Kc5 {[%emt 0:01:13]} 44. Be5 {[%emt 0:00:20] [#]} Rb7 {[%emt 0:01:10]} (44... Rh3 $1 $19 45. b4+ Kc6) 45. Ka6 $17 {[%emt 0:02:06]} Re7 {[%emt 0:39:24]} (45... Rf7 $17 46. Bb8 Rd7) 46. b4+ $1 $11 {[%emt 0:00:28]} Kc4 {[%emt 0:00:00] Strongly threatening ...Re6+.} 47. b5 {[%emt 0:00:34] aiming for b6.} Kc5 {[%emt 0:00:00]} 48. b6 {[%emt 0:00:28]} Kc6 {[%emt 0:00:00] Prevents b7.} (48... Re6 $5 49. Bc7 Kc6 $11) 49. Bc7 {[%emt 0:00:26]} Re1 {[%emt 0:00:00][%cal Re1a1]} 50. Ka7 $1 {[%emt 0:00:16]} ({Don't go for} 50. Be5 $2 Rb1 51. Bd4 Rb4 $19) 50... Ra1+ {[%emt 0:00:00]} 51. Kb8 {[%emt 0:00:02]} Ra4 {[%emt 0:00:00]} 52. h5 {[%emt 0:00:55]} gxh5 {[%emt 0:00:00] Hoping for ...Ra5.} 53. f5 {[%emt 0:00:03]} Ra5 {[%emt 0:00:00]} 54. g6 $2 {[%emt 0:00:57][%mdl 8192]} (54. f6 $11 Kd7 55. f7) 54... Rxf5 {[%emt 0:00:00] Black mates.} 55. g7 {[%emt 0:00:46]} Rg5 {[%emt 0:00:00]} 56. Ka8 {[%emt 0:00:18]} Rxg7 {[%emt 0:00:00]} 57. b7 {[%emt 0:00:34]} Rg4 {[%emt 0:00:00]} ({Not} 57... Rg8+ 58. b8=Q Rxb8+ 59. Kxb8 $11) 58. b8=B {[%emt 0:00:25]} Ra4+ {[%emt 0:00:00]} 59. Ba7 {[%emt 0:00:10]} Rxa7+ {[%emt 0:00:00]} 60. Kxa7 {[%emt 0:00:03]} Kxc7 {[%emt 0:00:00] KP-KP} 61. Ka6 {[%emt 0:00:08]} h4 {[%emt 0:00:00]} 62. Kb5 {[%emt 0:00:22]} h3 {[%emt 0:00:00]} 63. Kc4 {[%emt 0:00:01]} h2 {[%emt 0:00:00]} 64. Kd4 {[%emt 0:00:08]} h1=Q {[%emt 0:00:00]} 65. Ke5 {[%emt 0:00:06]} Qc6 {[%emt 0:00:00]} 66. Kd4 {[%emt 0:03:55] A wild game.  Weighted Error Value: White=0.34/Black=0.19 (very precise)} 0-1

[Event "13th KIIT Festival-A 2022"]
[Site "Bhubaneswar"]
[Date "2022.05.26"]
[Round "6.17"]
[White "Santu, Mondal"]
[Black "Mummana Venkata Ruthvik"]
[Result "1/2-1/2"]
[ECO "E68"]
[WhiteElo "2097"]
[BlackElo "1543"]
[Annotator "TA"]
[PlyCount "72"]
[EventDate "2022.05.15"]
[EventType "swiss"]
[EventCountry "IND"]
[SourceTitle "playchess.com"]
[Source "ChessBase"]
[SourceQuality "1"]
[TimeControl "5400+30"]

{[%evp 22,72,35,0,68,64,72,76,78,70,86,71,93,91,102,93,100,75,89,89,87,89,122,73,124,78,87,91,82,31,103,45,54,19,44,0,8,-6,29,16,14,16,56,15,23,12,50,0,0,0,0,0,82]} 1. d4 {[%emt 0:04:49]} Nf6 {[%emt 0:00:41]} 2. Nf3 {[%emt 0:01:10]} g6 {[%emt 0:00:13]} 3. g3 {[%emt 0:00:53]} Bg7 {[%emt 0:00:25]} 4. Bg2 {[%emt 0:00:06]} O-O {[%emt 0:00:08]} 5. c4 {[%emt 0:00:06]} d6 {[%emt 0:00:08]} 6. Nc3 {[%emt 0:00:05]} Nbd7 {[%emt 0:00:24]} 7. O-O {[%emt 0:00:07]} e5 {[%emt 0:00:13]} 8. e4 {[%emt 0:00:39]} exd4 {[%emt 0:00:32]} 9. Nxd4 {[%emt 0:00:06]} Re8 {[%emt 0:00:11]} 10. Re1 {[%emt 0:00:28]} Nc5 {[%emt 0:00:25]} 11. h3 {[%emt 0:00:57]} a5 {[%emt 0:01:02]} 12. Bf4 {[%emt 0:11:42][%cal Bc1f4,Bf4e3,Be3d4][%mdl 32] Recently 12.Rb1 got a lot of attention.} Nh5 {[%emt 0:22:53] E68: King's Indian: Fianchetto: 6...Nbd7 7 0-0 e5 8 e4.} (12... Nfd7 $11) 13. Be3 $14 {[%emt 0:00:58] [#]} Ne6 $146 {[%emt 0:02:36]} ({Predecessor:} 13... Nf6 14. Qc2 Bd7 15. Rad1 Qc8 16. Kh2 h5 17. Bf4 Nh7 18. h4 Bxd4 19. Rxd4 Ne6 20. Rdd1 Nxf4 21. gxf4 {0-1 (46) Pham,L (2366)-Perez,M (2417) Chess.com INT 2020}) 14. Qd2 {[%emt 0:04:01]} Nxd4 {[%emt 0:07:56] White is better.} 15. Bxd4 {[%emt 0:01:15]} Be6 {[%emt 0:01:07]} 16. b3 {[%emt 0:01:13]} Nf6 {[%emt 0:13:19]} 17. Rad1 {[%emt 0:04:30]} Nd7 {[%emt 0:05:57]} 18. Kh2 {[%emt 0:03:43]} Qc8 {[%emt 0:02:45]} 19. Bxg7 {[%emt 0:03:45]} Kxg7 {[%emt 0:00:18]} 20. f4 {[%emt 0:00:32][%cal Of4f5] [#] Threatens to win with f5!} f6 {[%emt 0:02:09]} 21. Qd4 {[%emt 0:02:23][%cal Oe4e5]} Bf7 {[%emt 0:03:52]} 22. g4 {[%emt 0:11:16]} ({White should try} 22. c5) 22... Kg8 {[%emt 0:08:36]} (22... h6 $142) 23. Re2 {[%emt 0:08:13]} (23. c5 $142) 23... Qd8 $16 {[%emt 0:06:13]} 24. Rf1 {[%emt 0:14:06] White is more active.} Qe7 {[%emt 0:01:02]} 25. h4 {[%emt 0:04:13]} (25. Nd5 $16 Qd8 26. Rd2) 25... h6 {[%emt 0:06:56]} (25... g5 $14) 26. Ref2 {[%emt 0:08:28]} (26. Nd5 $16 Qd8 27. Rd2) 26... Rf8 {[%emt 0:01:40]} 27. Bh3 {[%emt 0:02:34][%cal Og4g5] Black must now prevent g5!} Nc5 {[%emt 0:01:03]} 28. Re2 {[%emt 0:05:07]} Rae8 {[%emt 0:00:31]} 29. Rfe1 {[%emt 0:00:54]} Nd7 {[%emt 0:01:15]} 30. Nd5 {[%emt 0:00:39]} Bxd5 {[%emt 0:02:00]} 31. Qxd5+ {[%emt 0:00:07]} Qf7 {[%emt 0:00:06]} 32. Qxb7 {[%emt 0:00:35]} Nc5 {[%emt 0:00:49][%cal Bd7c5,Bc5e6,Be6f4][%mdl 32]} 33. Qd5 {[%emt 0:01:48]} Ne6 {[%emt 0:01:19]} 34. Qd2 {[%emt 0:01:01]} ({White should play} 34. Kg3 $14) 34... g5 $1 $11 {[%emt 0:00:33] The position is equal.} 35. f5 {[%emt 0:02:49]} Nf4 {[%emt 0:00:03]} 36. Rf2 {[%emt 0:00:40]} Re5 {[%emt 0:09:10] Weighted Error Value: White=0.21 (precise) /Black=0.20 (precise)} (36... Qe7 $11) 1/2-1/2

[Event "13th KIIT Festival-A 2022"]
[Site "Bhubaneswar"]
[Date "2022.05.26"]
[Round "6.18"]
[White "Manish Anto Cristiano F"]
[Black "Liyanage, Pesandu Rashmitha"]
[Result "1/2-1/2"]
[ECO "B28"]
[WhiteElo "2071"]
[BlackElo "1730"]
[Annotator "TA"]
[PlyCount "104"]
[EventDate "2022.05.15"]
[EventType "swiss"]
[EventCountry "IND"]
[SourceTitle "playchess.com"]
[Source "ChessBase"]
[SourceQuality "1"]
[TimeControl "5400+30"]

{[%evp 9,104,37,62,60,66,18,20,0,24,-88,-105,-100,-93,-89,-81,-106,-106,-106,-106,-107,-102,-103,-103,-127,-122,-121,-25,-25,-13,-118,-114,-111,6,7,12,12,7,9,8,13,13,0,0,0,0,0,0,0,0,0,8,8,8,0,8,8,8,8,7,0,0,0,0,0,0,0,0,0,0,0,0,0,14,0,0,0,0,0,0,0,0,0,0,0,0,0,0,0,0,0,0,0,0,0,0,0,0]} 1. e4 {[%emt 0:00:03]} c5 {[%emt 0:07:29]} 2. Nf3 {[%emt 0:00:08]} a6 {[%emt 0:00:06]} 3. c3 {[%emt 0:00:07]} d5 {[%emt 0:00:06]} 4. exd5 {[%emt 0:00:07]} Nf6 {[%emt 0:00:06][%cal Bg8f6,Bf6d5,Bd5e3][%mdl 32]} 5. d4 {[%emt 0:00:50]} Nxd5 {[%emt 0:01:02]} 6. dxc5 {[%emt 0:00:20] B28: Sicilian: 2 Nf3 a6 (O'Kelly Variation).} e6 {[%emt 0:00:15]} 7. Bd3 {[%emt 0:11:39]} (7. c4 $1 $14 Nf6 8. Qxd8+ Kxd8 9. Nc3) 7... Bxc5 $11 {[%emt 0:01:02]} 8. O-O {[%emt 0:00:18] [#]} Nc6 $146 {[%emt 0:01:49]} ({Predecessor:} 8... Nd7 9. Nbd2 N7f6 10. Ne4 Nxe4 11. Bxe4 Nf6 12. Qxd8+ Kxd8 13. Bc2 Ke7 {½-½ (36) Capablanca,J-Tartakower,S Vienna 1914}) 9. Nbd2 {[%emt 0:03:42]} (9. a4 $11 {remains equal.}) 9... Ne3 $1 $17 {[%emt 0:03:39]} 10. fxe3 {[%emt 0:02:19]} Bxe3+ {[%emt 0:00:02]} ({Much weaker is} 10... Qxd3 $6 11. Nd4 (11. Nb3 Qxd1 12. Rxd1 Bb6 $15) 11... O-O 12. N2b3 Qxd1 13. Rxd1 $15) 11. Kh1 {[%emt 0:00:14]} Qxd3 {[%emt 0:00:05]} 12. Nc4 {[%emt 0:05:07]} Qxd1 {[%emt 0:01:24]} 13. Rxd1 {[%emt 0:00:07] [#]} Bxc1 {[%emt 0:01:03]} 14. Raxc1 {[%emt 0:01:29]} Ke7 {[%emt 0:02:38]} 15. Nb6 {[%emt 0:02:11]} Rb8 {[%emt 0:01:49]} 16. Ng5 {[%emt 0:00:13]} f6 {[%emt 0:08:27]} 17. Ne4 {[%emt 0:01:10] [#]} Rd8 {[%emt 0:00:21] Prevents Nd6.} ({Better is} 17... e5 $1 $17 {White should prevent ...Bg4.} 18. Nd5+ Kf7 19. Nd6+ Kg6) 18. Rxd8 $11 {[%emt 0:06:17]} Kxd8 {[%emt 0:04:12]} 19. Nd6 {[%emt 0:00:18]} (19. Nc5 $1 $11) 19... Bd7 $17 {[%emt 0:00:11]} 20. Rd1 {[%emt 0:00:19]} Ne5 {[%emt 0:00:30] [#]} ({Black should play} 20... Be8 $17 {Hoping for ...Bh5.} 21. Nb5+ Ke7) 21. Nf7+ $1 {[%emt 0:02:24] Pair of Knights! The position is equal.} Kc7 $1 {[%emt 0:04:16]} ({Much less strong is} 21... Nxf7 22. Nxd7 Rc8 23. Nb6+ Kc7 24. Nxc8 Kxc8 25. Kg1 $16) 22. Nxe5 {[%emt 0:00:10]} fxe5 {[%emt 0:00:08]} 23. Rxd7+ {[%emt 0:26:14]} Kxb6 $11 {[%emt 0:00:02][%mdl 4096] Endgame KR-KR} 24. Kg1 {[%emt 0:01:39]} Kc6 {[%emt 0:01:50]} 25. Re7 {[%emt 0:01:31]} Rd8 {[%emt 0:17:18]} 26. Rxe6+ {[%emt 0:00:12]} Kd5 {[%emt 0:00:11]} 27. Re7 {[%emt 0:00:48][%csl LRb7,LRg7]} Ke4 {[%emt 0:00:38]} 28. h4 {[%emt 0:03:17]} b5 {[%emt 0:06:06]} 29. Rxg7 {[%emt 0:01:48]} h5 {[%emt 0:00:52]} 30. Rg5 {[%emt 0:00:29]} Rd2 {[%emt 0:00:35]} 31. b4 {[%emt 0:03:59]} Rxa2 {[%emt 0:02:29]} 32. Rxh5 {[%emt 0:00:07]} Kf4 {[%emt 0:21:40]} 33. Rh8 {[%emt 0:01:35]} Rc2 {[%emt 0:03:38]} 34. Rg8 {[%emt 0:01:32]} e4 $1 {[%emt 0:02:23]} 35. h5 {[%emt 0:00:22]} e3 {[%emt 0:00:32]} ({Don't play} 35... Rxc3 36. h6 Rc1+ 37. Kf2 Rc2+ 38. Ke1 Rc1+ 39. Ke2 $16) 36. Kf1 {[%emt 0:03:14] Strongly threatening h6.} Rc1+ {[%emt 0:00:30]} 37. Ke2 {[%emt 0:00:13] aiming for g3+.} Rc2+ {[%emt 0:00:08]} 38. Kd1 {[%emt 0:00:17]} Ra2 {[%emt 0:05:47]} 39. Rf8+ {[%emt 0:04:18]} Kg5 {[%emt 0:01:09]} 40. Re8 {[%emt 0:01:15]} Kxh5 {[%emt 0:01:02]} 41. g3 {[%emt 0:00:02]} Rd2+ {[%emt 0:00:39]} 42. Ke1 {[%emt 0:00:55]} Rd3 {[%emt 0:00:13]} 43. Rc8 {[%emt 0:00:15]} Rd2 {[%emt 0:00:59]} 44. Rc6 {[%emt 0:00:08]} Rc2 {[%emt 0:00:16]} 45. Rxa6 {[%emt 0:00:18]} Rxc3 {[%emt 0:00:07]} 46. Rb6 {[%emt 0:00:09]} Kg4 {[%emt 0:01:04]} 47. Rxb5 {[%emt 0:00:23]} Kxg3 {[%emt 0:00:19]} 48. Ke2 {[%emt 0:00:08]} Rb3 {[%emt 0:00:11]} 49. Rb8 {[%emt 0:02:09]} Kf4 {[%emt 0:00:08]} 50. Rf8+ {[%emt 0:00:05]} Ke4 {[%emt 0:00:22]} 51. Re8+ {[%emt 0:00:05]} Kd4 {[%emt 0:00:07]} 52. Rd8+ {[%emt 0:00:03]} Ke5 {[%emt 0:01:19] Weighted Error Value: White=0.13 (very precise) /Black=0.07 (flawless)} 1/2-1/2

[Event "13th KIIT Festival-A 2022"]
[Site "Bhubaneswar"]
[Date "2022.05.26"]
[Round "6.19"]
[White "Sahu, Sekhar Chandra"]
[Black "Eshan Bhattacharjee"]
[Result "0-1"]
[ECO "D06"]
[WhiteElo "2050"]
[BlackElo "1440"]
[Annotator "TA"]
[PlyCount "118"]
[EventDate "2022.05.15"]
[EventType "swiss"]
[EventCountry "IND"]
[SourceTitle "playchess.com"]
[Source "ChessBase"]
[SourceQuality "1"]
[TimeControl "5400+30"]

{[%evp 9,118,8,49,41,42,33,55,50,89,53,57,3,6,-22,-8,-27,18,9,13,11,17,-24,-16,-95,-85,-63,-68,-82,0,-8,-10,-9,57,41,62,49,75,77,77,77,369,375,359,305,360,53,55,-517,-546,-523,-380,-365,-375,-373,-314,-352,-352,-353,-347,-455,-438,-517,-510,-514,-505,-694,-682,-891,-891,-871,-826,-959,-955,-920,-898,-921,-1102,-1206,-206,-145,0,-648,-1114,-1416,-1232,-1091,-1006,-946,0,-825,-742,-12828,-12829,-12827,-5936,-12835,-12835,-12842,-12838,-12837,-1247,-12843,-12844,-12845,-12846,-12846,-12847,-12847,-12847,-12847,-1728]} 1. Nf3 {[%emt 0:02:35]} d5 {[%emt 0:00:07]} 2. c4 {[%emt 0:00:04]} Nf6 {[%emt 0:00:09]} 3. cxd5 {[%emt 0:00:25]} Nxd5 {[%emt 0:00:15]} 4. d4 {[%emt 0:00:10]} Bf5 {[%emt 0:02:05]} 5. g3 {[%emt 0:02:38]} e6 {[%emt 0:02:03]} (5... Nb4 $5 {[%cal Rb4c2]} 6. Na3 (6. Qa4+ N8c6 $15) 6... N8c6 $11) 6. Bg2 {[%emt 0:00:08] D06: Queen's Gambit: Symmetrical and Baltic Defences.} Nc6 {[%emt 0:01:46]} 7. O-O {[%emt 0:00:45]} Bd6 {[%emt 0:02:37]} 8. Nbd2 {[%emt 0:01:30] White is slightly better.} Nf6 {[%emt 0:01:17] Inhibits e4.} 9. Nc4 {[%emt 0:07:44]} Be4 {[%emt 0:11:16] [#]} 10. Nxd6+ $146 {[%emt 0:07:13]} (10. b3 $14) ({Predecessor:} 10. Ncd2 Bg6 11. b3 O-O 12. Bb2 Qe7 13. h3 Rad8 14. Qc1 Rfe8 15. a3 e5 16. dxe5 Nxe5 17. Nh4 {1-0 (41) Garcia Luque,A (2409)-Pons Sastre,S (2328) Cala Mendia 2001}) 10... cxd6 $11 {[%emt 0:00:14]} 11. b3 {[%emt 0:03:33]} O-O {[%emt 0:02:20]} 12. Ba3 {[%emt 0:00:22]} Qa5 {[%emt 0:17:39]} 13. Bxd6 {[%emt 0:04:30]} Rfd8 {[%emt 0:00:27]} 14. Bf4 {[%emt 0:00:02]} Bxf3 {[%emt 0:11:17]} 15. exf3 {[%emt 0:02:55]} Nxd4 {[%emt 0:04:31]} 16. a3 {[%emt 0:12:49]} (16. Be3 $11 {remains equal.}) 16... Qb5 {[%emt 0:03:22] Black is much more active. The white rooks are badly placed.} 17. Ra2 {[%emt 0:01:57] Prevents Ne2+.} Nxb3 {[%emt 0:15:05] Pair of Knights!} 18. Qb1 {[%emt 0:00:52]} Qd5 {[%emt 0:08:22]} (18... Qd3 $17) 19. Rb2 {[%emt 0:07:45]} Nd4 {[%emt 0:00:25]} 20. Kh1 {[%emt 0:00:16]} b6 {[%emt 0:04:38]} (20... Nxf3 $2 21. Rb3 $18) ({Black should play} 20... Qh5 $11) 21. Bc7 $1 $14 {[%emt 0:01:54]} Rdc8 {[%emt 0:02:09] [#]} (21... Nxf3 $2 22. Rb3 Nd2 23. Bxd5 $18) 22. f4 $1 {[%emt 0:00:40]} Qh5 {[%emt 0:01:30]} (22... Qc5 23. Bxa8) 23. Bxa8 {[%emt 0:07:25]} Rxa8 {[%emt 0:02:05]} 24. f3 {[%emt 0:00:20] Hoping for Be5.} Nxf3 {[%emt 0:00:48][%mdl 8192] [#]} (24... Nd5 $16 25. Be5 Nc6) 25. Qd1 $1 $18 {[%emt 0:00:14]} Rc8 {[%emt 0:05:47][%cal Og7g6]} 26. Rxf3 {[%emt 0:00:50]} Nd5 {[%emt 0:00:07][%cal Bf6d5,Bd5e3,Be3c2][%mdl 32] [#]} 27. Be5 {[%emt 0:01:30]} (27. f5 $1 $18) 27... Ne3 $1 $14 {[%emt 0:00:52][%mdl 64] Deflection} 28. Qe1 $2 {[%emt 0:04:52][%mdl 8192]} Qxf3+ $19 {[%emt 0:00:24]} 29. Kg1 {[%emt 0:00:01]} Rd8 {[%emt 0:00:41] And now ...Rd1 would win.} 30. Rf2 {[%emt 0:00:36]} Qd1 {[%emt 0:00:25]} 31. Re2 {[%emt 0:00:14]} Qxe1+ {[%emt 0:00:09]} 32. Rxe1 {[%emt 0:00:01][%mdl 4096] Endgame KRB-KRN} Nc2 {[%emt 0:00:19][%csl LRa3,LRe1]} 33. Rc1 {[%emt 0:00:40]} Nxa3 {[%emt 0:00:12]} 34. Kf2 {[%emt 0:01:33]} f6 {[%emt 0:00:38]} 35. Ba1 {[%emt 0:00:07]} Rd2+ {[%emt 0:00:28]} 36. Ke3 {[%emt 0:00:02]} Rxh2 {[%emt 0:00:32]} 37. g4 {[%emt 0:01:00]} Nc2+ {[%emt 0:00:51]} 38. Ke4 {[%emt 0:00:17]} Nxa1 {[%emt 0:00:59]} 39. Rxa1 {[%emt 0:00:32] KR-KR} a5 {[%emt 0:00:24]} 40. Rb1 {[%emt 0:00:02]} Re2+ {[%emt 0:00:37]} 41. Kf3 {[%emt 0:00:04]} Ra2 {[%emt 0:00:09]} 42. Rxb6 {[%emt 0:00:05]} Kf7 {[%emt 0:00:26] Strongly threatening ...Ra1.} 43. Rb7+ {[%emt 0:00:11]} Kf8 $2 {[%emt 0:00:52]} (43... Kg6 44. Rb6 Ra3+ 45. Ke4 Ra4+ 46. Ke3 Ra1) 44. Rb8+ {[%emt 0:00:07]} Kf7 {[%emt 0:00:05]} 45. Rb7+ {[%emt 0:00:10]} Kg6 {[%emt 0:00:15] ...Ra1 is the strong threat.} 46. Rb6 {[%emt 0:00:06]} Ra3+ {[%emt 0:00:12]} 47. Ke4 {[%emt 0:00:27]} Ra4+ {[%emt 0:00:32]} 48. Kf3 {[%emt 0:00:26]} Ra3+ {[%emt 0:00:23]} 49. Ke4 {[%emt 0:00:02]} Rg3 {[%emt 0:00:03] Black is clearly winning.} 50. Rxe6 {[%emt 0:00:15]} Rxg4 {[%emt 0:00:04]} 51. Ra6 {[%emt 0:00:15]} h5 {[%emt 0:01:16][%cal Bh7h5,Bh5h4,Bh4h3][%mdl 32]} 52. Rxa5 {[%emt 0:01:05]} h4 {[%emt 0:00:07]} 53. Ra8 {[%emt 0:00:08]} Kh7 {[%emt 0:01:08]} 54. Kf5 {[%emt 0:00:55]} Rg3 {[%emt 0:00:34] Threatens to win with ...h3.} 55. Ke6 {[%emt 0:00:24]} h3 {[%emt 0:00:32]} 56. Ra5 {[%emt 0:00:07]} Kg6 {[%emt 0:01:11]} 57. f5+ {[%emt 0:00:36]} Kg5 {[%emt 0:00:26]} 58. Ra8 {[%emt 0:00:07]} Rg4 {[%emt 0:00:38]} 59. Rg8 {[%emt 0:00:25]} Kf4 {[%emt 0:00:18] Quite a comeback for Black.  Weighted Error Value: White=0.61/Black=0.33} (59... h2 $142 60. Rxg7+ Kh6 61. Rxg4 h1=Q 62. Rg6+ Kh5) 0-1

[Event "13th KIIT Festival-A 2022"]
[Site "Bhubaneswar"]
[Date "2022.05.26"]
[Round "7.1"]
[White "Aleksandrov, Aleksej"]
[Black "Amonatov, Farrukh"]
[Result "1/2-1/2"]
[ECO "D85"]
[WhiteElo "2492"]
[BlackElo "2622"]
[Annotator "TA"]
[PlyCount "29"]
[EventDate "2022.05.15"]
[EventType "swiss"]
[EventCountry "IND"]
[SourceTitle "playchess.com"]
[Source "ChessBase"]
[SourceQuality "1"]
[TimeControl "5400+30"]

{[%evp 15,29,10,20,7,34,0,0,0,0,0,0,0,0,0,0,0]} 1. d4 {[%emt 0:00:01]} Nf6 {[%emt 0:00:09]} 2. c4 {[%emt 0:00:02]} g6 {[%emt 0:00:07]} 3. Nc3 {[%emt 0:00:03]} d5 {[%emt 0:00:13]} 4. cxd5 {[%emt 0:00:04]} Nxd5 {[%emt 0:00:07]} 5. e4 {[%emt 0:00:05]} Nxc3 {[%emt 0:00:11]} 6. bxc3 {[%emt 0:00:04]} Bg7 {[%emt 0:00:08]} 7. Nf3 $1 {[%emt 0:00:04][%cal Bg1f3,Bf3d2,Bd2b3][%mdl 4] is now more promising than 7.Bc4.} c5 {[%emt 0:01:09]} 8. Be3 {[%emt 0:00:06]} Qa5 {[%emt 0:00:10]} 9. Nd2 {[%emt 0:00:04] D85: Exchange Grünfeld: Unusual White 7th moves and lines with 7 Nf3.} O-O {[%emt 0:00:16]} ({But not} 9... Qxc3 10. Rc1 Qb4 11. Rc4 $14 (11. Rxc5 O-O $14)) 10. Nb3 {[%emt 0:00:02] [#]} Qxc3+ $1 $146 {[%emt 0:00:11][%mdl 8] The position is equal. A relevant novelty.} ({Predecessor:} 10... Qc7 11. Nxc5 Nd7 12. Na4 a6 13. Rc1 b5 14. Nb2 Bb7 15. f3 Qa5 16. Qb3 e5 {0-1 (64) Grischuk,A (2776)-Nepomniachtchi,I (2792) chess24.com INT 2021}) 11. Bd2 {[%emt 0:00:02]} Qb2 {[%emt 0:00:08]} 12. Bc1 {[%emt 0:00:03]} Qc3+ {[%emt 0:00:09]} 13. Bd2 {[%emt 0:00:04]} Qb2 {[%emt 0:00:09]} 14. Bc1 {[%emt 0:00:02]} Qc3+ {[%emt 0:00:11]} 15. Bd2 {[%emt 0:01:02] A balanced but interesting game.  Weighted Error Value: White=0.10 (very precise) /Black=0.06 (flawless)} 1/2-1/2